[Event "TUR-chT Superleague 2018"]
[Site "Ankara"]
[Date "2018.08.01"]
[Round "8"]
[White "Ozturk, Kubra"]
[Black "Atalik, Ekaterina"]
[Result "1/2-1/2"]
[ECO "D85"]
[WhiteElo "2330"]
[BlackElo "2461"]
[Annotator "ChessBase"]
[PlyCount "108"]
[EventDate "2018.07.25"]
[EventType "team-tourn"]
[EventCountry "TUR"]
[SourceTitle "playchess.com"]
[Source "ChessBase"]
[SourceQuality "1"]
[TimeControl "40/5400+30:1800+30"]

1. d4 Nf6 2. c4 g6 3. Nc3 d5 4. cxd5 Nxd5 5. e4 Nxc3 6. bxc3 Bg7 7. Qa4+ Nd7 8. Nf3 O-O 9. Be2 c5 10. O-O Nb6 11. Qa3 cxd4 12. cxd4 Bg4 13. Bg5 Re8 14. Rad1 Qd6 15. Qe3 Rac8 16. Bf4 Qb4 17. Rb1 Qc3 18. d5 Qxe3 19. Bxe3 Rc2 20. Bb5 Ra8 21. a4 Nc4 22. Bxc4 Rxc4 23. Nd2 Rxa4 24. Rxb7 Bf8 25. f3 Bc8 26. Rc7 a5 27. Nc4 Rxc4 28. Rxc4 Ba6 29. Ra4 Bb5 30. Rfa1 Bxa4 31. Rxa4 Bg7 32. Bd2 Rb8 33. Rxa5 Bd4+ 34. Kf1 Rb1+ 35. Ke2 f6 36. Kd3 Be5 37. g3 g5 38. Ra7 Kf8 39. f4 gxf4 40. gxf4 Bd6 {[%emt 1:07:00]} 41. Ra8+ {[%emt 1:51:30]} Kf7 {[%emt 0:31:30]} 42. Rh8 {[%emt 0:00:30]} Kg7 {[%emt 0:00:30]} 43. Rc8 {[%emt 0:01:30]} Rd1 {[%emt 0:08:30]} 44. Ke2 {[%emt 0:10:31]} Rh1 {[%emt 0:01:30]} 45. Kf3 {[%emt 0:00:24]} Rxh2 {[%emt 0:03:30]} 46. Bc3 {[%emt 0:01:00]} Rh3+ {[%emt 0:04:30]} 47. Kg4 {[%emt 0:01:34]} Re3 {[%emt 0:00:30]} 48. Kf5 {[%emt 0:01:50]} Rf3 {[%emt 0:00:30]} 49. e5 {[%emt 0:03:12]} fxe5 {[%emt 0:00:30]} 50. Bxe5+ {[%emt 0:00:02]} Bxe5 {[%emt 0:00:30]} 51. Kxe5 {[%emt 0:00:02]} Kf7 {[%emt 0:01:30]} 52. Rh8 {[%emt 0:00:49]} Kg7 {[%emt 0:01:30]} 53. Re8 {[%emt 0:00:40]} Kf7 {[%emt 0:00:30]} 54. Rh8 {[%emt 0:00:00]} Kg7 {[%emt 0:00:30]} 1/2-1/2

[Event "TUR-chT Superleague 2018"]
[Site "Ankara"]
[Date "2018.08.01"]
[Round "8"]
[White "Sari, Yasin"]
[Black "Tuncer, Tuna"]
[Result "1/2-1/2"]
[ECO "D12"]
[WhiteElo "2299"]
[BlackElo "2328"]
[Annotator "NA"]
[PlyCount "111"]
[EventDate "2018.07.25"]
[EventType "team-tourn"]
[EventCountry "TUR"]
[SourceTitle "playchess.com"]
[Source "ChessBase"]
[SourceQuality "1"]
[TimeControl "40/5400+30:1800+30"]

1. d4 d5 2. c4 c6 3. Nf3 Nf6 4. e3 Bf5 5. Nh4 Be4 6. Nc3 e6 7. f3 Bg6 8. Qb3 Qc7 9. Bd2 Be7 10. Nxg6 hxg6 11. O-O-O a6 12. Kb1 dxc4 13. Bxc4 b5 14. Be2 c5 15. dxc5 Nbd7 16. Rc1 Nxc5 17. Qc2 O-O 18. g4 Qb7 19. g5 Nh5 20. a3 Bxg5 21. f4 Bf6 22. b4 Nd7 23. Ne4 Rac8 24. Qd3 Qd5 25. Nd6 Rxc1+ 26. Rxc1 Be7 27. Nc8 Bh4 28. Qxd5 exd5 29. a4 Ndf6 30. Nd6 {[%emt 1:41:29]} Rd8 {[%emt 1:43:28]} 31. Rc6 {[%emt 0:00:30]} Ne4 {[%emt 0:00:30]} 32. Nxe4 {[%emt 0:00:30]} dxe4 {[%emt 0:00:30]} 33. Kc2 {[%emt 0:00:30]} bxa4 {[%emt 0:01:22]} 34. Rxa6 {[%emt 0:01:06]} Rc8+ {[%emt 0:00:30]} 35. Kd1 {[%emt 0:00:30]} Rd8 {[%emt 0:00:11]} 36. Rxa4 {[%emt 0:01:45]} Nxf4 {[%emt 0:00:34]} 37. exf4 {[%emt 0:01:52]} e3 {[%emt 0:00:30]} 38. Ra2 {[%emt 0:00:00]} Be7 {[%emt 0:00:01]} 39. Kc1 {[%emt 0:00:34]} exd2+ {[%emt 0:01:00]} 40. Rxd2 {[%emt 0:00:00]} Rxd2 {[%emt 0:01:09]} 41. Kxd2 {[%emt 0:00:44]} Bxb4+ {[%emt 0:00:00]} 42. Ke3 {[%emt 0:00:30]} Be1 {[%emt 0:10:15]} 43. Kf3 {[%emt 0:00:30]} f5 {[%emt 0:00:30]} 44. Bc4+ {[%emt 0:00:30]} Kf8 {[%emt 0:00:30]} 45. Bb3 {[%emt 0:00:30]} Ke7 {[%emt 0:00:30]} 46. h3 {[%emt 0:00:30]} Kf6 {[%emt 0:00:30]} 47. Bc4 {[%emt 0:00:30]} Ba5 {[%emt 0:00:30]} 48. Bd5 {[%emt 0:00:30]} Bc7 {[%emt 0:01:30]} 49. Bc6 {[%emt 0:00:30]} Bd6 {[%emt 0:00:30]} 50. Bd5 {[%emt 0:00:30]} g5 {[%emt 0:00:30]} 51. fxg5+ {[%emt 0:00:30]} Kxg5 {[%emt 0:00:30]} 52. Kg2 {[%emt 0:00:00]} Kf4 {[%emt 0:00:30]} 53. Bc6 {[%emt 0:00:00]} g5 {[%emt 0:00:30]} 54. Bd7 {[%emt 0:00:30]} g4 {[%emt 0:00:30]} 55. hxg4 {[%emt 0:00:30]} fxg4 {[%emt 0:00:30]} 56. Bxg4 {[%emt 0:00:00]} 1/2-1/2

[Event "TUR-chT Superleague 2018"]
[Site "Ankara"]
[Date "2018.08.01"]
[Round "8"]
[White "Yaran, Siar"]
[Black "Yilmaz, Goktan"]
[Result "1/2-1/2"]
[ECO "D61"]
[WhiteElo "2240"]
[BlackElo "2233"]
[Annotator "NA"]
[PlyCount "113"]
[EventDate "2018.07.25"]
[EventType "team-tourn"]
[EventCountry "TUR"]
[SourceTitle "playchess.com"]
[Source "ChessBase"]
[SourceQuality "1"]
[TimeControl "40/5400+30:1800+30"]

1. c4 e6 2. Nc3 d5 3. d4 Nf6 4. Bg5 Be7 5. e3 Nbd7 6. Nf3 O-O 7. Qc2 c5 8. Rd1 Qa5 9. cxd5 Nxd5 10. Bxe7 Nxe7 11. Be2 Nf6 12. O-O Bd7 13. Ne5 cxd4 14. Nxd7 Nxd7 15. Rxd4 Ne5 16. Rfd1 N7c6 17. Ra4 Qb6 18. Rh4 Ng6 19. Na4 Qa5 20. Rc4 Rfd8 21. Rc5 Rxd1+ 22. Qxd1 Rd8 23. Rxa5 Rxd1+ 24. Bxd1 Nxa5 25. Kf1 Kf8 26. Ke1 Ke7 27. Kd2 Ne5 28. Be2 Nac4+ 29. Kc2 Nd6 30. Nc3 Nc6 31. a3 f5 32. f4 e5 33. Kd3 e4+ 34. Kc2 Ke6 35. b4 Ne7 36. Kb3 Nd5 37. Nxd5 Kxd5 38. Kc3 a6 39. Bf1 {[%emt 1:42:26]} Nc8 {[%emt 1:47:33]} 40. Bc4+ {[%emt 0:00:30]} Kd6 {[%emt 0:00:00]} 41. g4 {[%emt 0:24:27]} Ne7 {[%emt 0:11:57]} 42. Bf7 {[%emt 0:01:50]} h6 {[%emt 0:02:00]} 43. gxf5 {[%emt 0:04:25]} Nxf5 {[%emt 0:00:01]} 44. Kd2 {[%emt 0:00:00]} Ne7 {[%emt 0:01:35]} 45. Bb3 {[%emt 0:04:53]} b6 {[%emt 0:02:20]} 46. Bc2 {[%emt 0:01:19]} Kd5 {[%emt 0:00:30]} 47. Bb3+ {[%emt 0:00:30]} Kd6 {[%emt 0:00:00]} 48. Bc4 {[%emt 0:00:00]} a5 {[%emt 0:01:49]} 49. bxa5 {[%emt 0:00:13]} bxa5 {[%emt 0:00:00]} 50. Ba6 {[%emt 0:00:23]} Nd5 {[%emt 0:01:24]} 51. Bb7 {[%emt 0:00:41]} Kc5 {[%emt 0:02:17]} 52. h4 {[%emt 0:02:32]} Kc4 {[%emt 0:03:45]} 53. Bc8 {[%emt 0:00:38]} Nf6 {[%emt 0:02:12]} 54. Be6+ {[%emt 0:00:30]} Kc5 {[%emt 0:00:00]} 55. Bf5 {[%emt 0:00:44]} Kc4 {[%emt 0:00:56]} 56. Kc2 {[%emt 0:00:50]} Nd5 {[%emt 0:02:11]} 57. Be6 {[%emt 0:00:22]} 1/2-1/2

[Event "TUR-chT Superleague 2018"]
[Site "Ankara"]
[Date "2018.08.01"]
[Round "8"]
[White "Samani, Yamac"]
[Black "Gulden, Egemen"]
[Result "1/2-1/2"]
[ECO "B52"]
[WhiteElo "2217"]
[BlackElo "2003"]
[Annotator "NA"]
[PlyCount "60"]
[EventDate "2018.07.25"]
[EventType "team-tourn"]
[EventCountry "TUR"]
[SourceTitle "playchess.com"]
[Source "ChessBase"]
[SourceQuality "1"]
[TimeControl "40/5400+30:1800+30"]

1. e4 c5 2. Nf3 d6 3. Bb5+ Bd7 4. Bxd7+ Qxd7 5. O-O g6 6. c3 e5 7. d4 Bg7 8. Be3 b6 9. Na3 Ne7 10. dxe5 dxe5 11. Nc4 Qxd1 12. Raxd1 Nec6 13. Rd5 f6 14. Nd6+ Ke7 15. Rfd1 Rd8 16. b4 cxb4 17. cxb4 Rd7 18. b5 Nd8 19. Bd2 Nf7 {[%emt 1:31:26]} 20. Bb4 {[%emt 1:25:04]} Nxd6 {[%emt 0:00:33]} 21. Bxd6+ {[%emt 0:01:07]} Ke8 {[%emt 0:00:37]} 22. Rc1 {[%emt 0:01:06]} Rd8 {[%emt 0:01:57]} 23. Rc7 {[%emt 0:07:41]} Nd7 {[%emt 0:01:27]} 24. Bb4 {[%emt 0:00:37]} Bf8 {[%emt 0:01:36]} 25. Bxf8 {[%emt 0:02:03]} Nxf8 {[%emt 0:00:05]} 26. Rxd8+ {[%emt 0:01:36]} Rxd8 {[%emt 0:00:04]} 27. g3 {[%emt 0:00:00]} Rd7 {[%emt 0:00:07]} 28. Rc8+ {[%emt 0:00:45]} Rd8 {[%emt 0:01:51]} 29. Rc7 {[%emt 0:01:27]} Rd7 {[%emt 0:00:04]} 30. Rc8+ {[%emt 0:01:38]} Rd8 {[%emt 0:00:05]} 1/2-1/2

[Event "TUR-chT Superleague 2018"]
[Site "Ankara"]
[Date "2018.08.01"]
[Round "8"]
[White "Gulbeyaz, Emir"]
[Black "Ozcan, Kaan"]
[Result "1-0"]
[ECO "D78"]
[WhiteElo "2208"]
[BlackElo "1523"]
[Annotator "NA"]
[PlyCount "115"]
[EventDate "2018.07.25"]
[EventType "team-tourn"]
[EventCountry "TUR"]
[SourceTitle "playchess.com"]
[Source "ChessBase"]
[SourceQuality "1"]
[TimeControl "40/5400+30:1800+30"]

1. Nf3 {[%emt 0:00:30]} Nf6 {[%emt 0:00:30]} 2. g3 {[%emt 0:00:30]} g6 {[%emt 0:00:30]} 3. Bg2 {[%emt 0:00:00]} Bg7 {[%emt 0:00:30]} 4. O-O {[%emt 0:00:00]} O-O {[%emt 0:00:30]} 5. d4 {[%emt 0:00:00]} d5 {[%emt 0:02:30]} 6. c4 {[%emt 0:00:00]} c6 {[%emt 0:04:30]} 7. Nbd2 {[%emt 0:00:30]} Nbd7 {[%emt 0:04:30]} 8. Qc2 {[%emt 0:00:30]} dxc4 {[%emt 0:03:30]} 9. Nxc4 {[%emt 0:00:30]} Nb6 {[%emt 0:00:30]} 10. Nxb6 {[%emt 0:01:30]} Qxb6 {[%emt 0:02:30]} 11. e4 {[%emt 0:00:30]} Bg4 {[%emt 0:11:30]} 12. Be3 {[%emt 0:00:00]} Bxf3 {[%emt 0:01:30]} 13. Bxf3 {[%emt 0:00:00]} Qd8 {[%emt 0:04:30]} 14. Rfd1 {[%emt 0:00:00]} e6 {[%emt 0:01:30]} 15. Rab1 {[%emt 0:02:00]} Rc8 {[%emt 0:06:30]} 16. b4 {[%emt 0:01:30]} Qe7 {[%emt 0:04:30]} 17. Qc5 {[%emt 0:00:30]} Rfe8 {[%emt 0:08:30]} 18. Qxa7 {[%emt 0:04:30]} Ra8 {[%emt 0:03:30]} 19. Qc5 {[%emt 0:00:30]} Rxa2 {[%emt 0:05:30]} 20. Qxe7 {[%emt 0:00:30]} Rxe7 {[%emt 0:00:00]} 21. b5 {[%emt 0:00:00]} Ra8 {[%emt 0:05:00]} 22. Rdc1 {[%emt 0:02:00]} Rc8 {[%emt 0:06:30]} 23. d5 {[%emt 0:01:30]} exd5 {[%emt 0:02:30]} 24. exd5 {[%emt 0:00:30]} c5 {[%emt 0:03:06]} 25. Rxc5 {[%emt 0:01:30]} Rxc5 {[%emt 0:03:15]} 26. Bxc5 {[%emt 0:00:00]} Rd7 {[%emt 0:00:17]} 27. Ra1 {[%emt 0:01:00]} h5 {[%emt 0:07:03]} 28. Ra8+ {[%emt 0:00:30]} Kh7 {[%emt 0:00:30]} 29. d6 {[%emt 0:00:30]} Ng4 {[%emt 0:06:32]} 30. Bc6 {[%emt 0:00:00]} Ne5 {[%emt 0:01:58]} 31. Bxd7 {[%emt 0:00:00]} Nxd7 {[%emt 0:00:20]} 32. Rc8 {[%emt 0:00:00]} Be5 {[%emt 0:00:46]} 33. Bb4 {[%emt 0:01:00]} Kg7 {[%emt 0:00:40]} 34. Bc3 {[%emt 0:00:30]} Kf6 {[%emt 0:00:24]} 35. Bxe5+ {[%emt 0:00:30]} Kxe5 {[%emt 0:00:30]} 36. Rc7 {[%emt 0:00:00]} Kxd6 {[%emt 0:00:00]} 37. Rxb7 {[%emt 0:00:00]} f5 {[%emt 0:00:57]} 38. Ra7 {[%emt 0:00:00]} Ne5 {[%emt 0:00:27]} 39. f4 {[%emt 0:00:00]} Nf3+ {[%emt 0:01:08]} 40. Kf2 {[%emt 0:00:30]} Nxh2 {[%emt 0:00:00]} 41. Ra6+ {[%emt 0:00:30]} Kc5 {[%emt 0:01:07]} 42. Rxg6 {[%emt 0:00:30]} Kxb5 {[%emt 0:00:30]} 43. Rg5 {[%emt 0:00:00]} Ng4+ {[%emt 0:00:30]} 44. Kf3 {[%emt 0:00:00]} Kc6 {[%emt 0:04:30]} 45. Rxf5 {[%emt 0:00:00]} Kd7 {[%emt 0:01:30]} 46. Rxh5 {[%emt 0:00:00]} Nf6 {[%emt 0:01:30]} 47. Rh6 {[%emt 0:00:30]} Ke7 {[%emt 0:01:30]} 48. g4 {[%emt 0:00:00]} Kf7 {[%emt 0:00:30]} 49. g5 {[%emt 0:00:00]} Ne8 {[%emt 0:01:30]} 50. f5 {[%emt 0:00:00]} Ng7 {[%emt 0:02:30]} 51. Kg4 {[%emt 0:00:00]} Ne8 {[%emt 0:00:30]} 52. Rh7+ {[%emt 0:00:00]} Kg8 {[%emt 0:01:04]} 53. Ra7 {[%emt 0:00:00]} Nd6 {[%emt 0:01:11]} 54. f6 {[%emt 0:00:00]} Nc4 {[%emt 0:01:47]} 55. g6 {[%emt 0:00:00]} Ne5+ {[%emt 0:00:34]} 56. Kf5 {[%emt 0:00:30]} Nxg6 {[%emt 0:01:38]} 57. Kxg6 {[%emt 0:00:00]} Kh8 {[%emt 0:00:24]} 58. Ra8# {[%emt 0:00:00]} 1-0

[Event "TUR-chT Superleague 2018"]
[Site "Ankara"]
[Date "2018.08.01"]
[Round "8"]
[White "Kamer, Kayra"]
[Black "Tarlabasi, Emirhan"]
[Result "1-0"]
[ECO "A00"]
[WhiteElo "2208"]
[BlackElo "2174"]
[Annotator "NA"]
[PlyCount "176"]
[EventDate "2018.07.25"]
[EventType "team-tourn"]
[EventCountry "TUR"]
[SourceTitle "playchess.com"]
[Source "ChessBase"]
[SourceQuality "1"]
[TimeControl "40/5400+30:1800+30"]

1. g3 d5 2. Bg2 Nf6 3. d3 e6 4. e4 Be7 5. Nc3 O-O 6. f4 dxe4 7. dxe4 Qxd1+ 8. Nxd1 Nbd7 9. e5 Nd5 10. Ne3 N7b6 11. Nxd5 Nxd5 12. c4 Nb4 13. Be4 Bd7 14. Nf3 Bc6 15. Bxc6 Nxc6 16. Ke2 a5 17. Be3 a4 18. Rhd1 Rfd8 19. Nd4 Nxd4+ 20. Bxd4 Kf8 21. Ke3 Ke8 22. Ke4 Rd7 23. Bc3 Rxd1 24. Rxd1 Rd8 25. Rf1 c6 26. Ba5 Rd7 27. b3 Bc5 28. Bc3 b5 29. cxb5 cxb5 30. Rc1 axb3 31. axb3 Bb6 32. Ra1 Ra7 33. Rd1 Rd7 34. Bd4 Bd8 35. Ra1 Rb7 36. Bc5 g6 37. g4 f5+ 38. exf6 Bxf6 39. Ra8+ Kf7 40. Rf8+ Kg7 41. g5 Bb2 42. Rc8 h5 43. gxh6+ Kxh6 44. Rc6 Kh5 45. Rxe6 Rf7 46. Bd6 Rf5 47. Be5 Bc1 48. Rb6 Rf7 49. Rxb5 Kg4 50. Rb6 g5 51. fxg5 Bxg5 52. b4 Rf2 53. Rb7 Re2+ 54. Kd5 Rd2+ 55. Ke6 Re2 56. Kd5 Rd2+ 57. Kc4 {[%emt 0:58:30]} Kf5 {[%emt 2:27:52]} 58. Bg3 {[%emt 0:00:30]} Ke6 {[%emt 0:00:30]} 59. Kb5 {[%emt 0:00:30]} Be7 {[%emt 0:00:30]} 60. Rc7 {[%emt 0:00:30]} Rd5+ {[%emt 0:00:20]} 61. Kc4 {[%emt 0:01:30]} Rd1 {[%emt 0:00:30]} 62. b5 {[%emt 0:00:30]} Rc1+ {[%emt 0:00:30]} 63. Kd3 {[%emt 0:00:30]} Rb1 {[%emt 0:00:30]} 64. Rb7 {[%emt 0:00:30]} Bd8 {[%emt 0:00:36]} 65. Kc2 {[%emt 0:00:00]} Rb4 {[%emt 0:00:23]} 66. Kc3 {[%emt 0:01:00]} Ba5 {[%emt 0:00:40]} 67. Kd3 {[%emt 0:01:30]} Kd5 {[%emt 0:00:38]} 68. Rd7+ {[%emt 0:00:30]} Ke6 {[%emt 0:00:35]} 69. Rd6+ {[%emt 0:00:00]} Ke7 {[%emt 0:00:09]} 70. Rd5 {[%emt 0:00:00]} Rb2 {[%emt 0:01:14]} 71. Ke4 {[%emt 0:00:30]} Ke6 {[%emt 0:00:30]} 72. Re5+ {[%emt 0:00:30]} Kf6 {[%emt 0:00:00]} 73. Rc5 {[%emt 0:00:30]} Ke6 {[%emt 0:00:26]} 74. h4 {[%emt 0:02:30]} Rb4+ {[%emt 0:00:33]} 75. Kf3 {[%emt 0:00:00]} Kf6 {[%emt 0:00:32]} 76. Be5+ {[%emt 0:00:00]} Ke6 {[%emt 0:00:31]} 77. Bf4 {[%emt 0:00:30]} Kf7 {[%emt 0:00:29]} 78. Kg4 {[%emt 0:00:30]} Bb6 {[%emt 0:00:49]} 79. Rf5+ {[%emt 0:00:30]} Ke6 {[%emt 0:00:11]} 80. h5 {[%emt 0:02:30]} Rb1 {[%emt 0:00:28]} 81. Re5+ {[%emt 0:01:30]} Kf6 {[%emt 0:00:49]} 82. Rd5 {[%emt 0:00:00]} Kg7 {[%emt 0:00:13]} 83. h6+ {[%emt 0:00:00]} Kg8 {[%emt 0:00:28]} 84. Kf5 {[%emt 0:00:30]} Rf1 {[%emt 0:00:26]} 85. Re5 {[%emt 0:01:30]} Kf7 {[%emt 0:00:34]} 86. h7 {[%emt 0:02:30]} Rh1 {[%emt 0:00:20]} 87. Re6 {[%emt 0:01:30]} Rh5+ {[%emt 0:01:03]} 88. Kg4 {[%emt 0:00:00]} Bd4 {[%emt 0:00:39]} 1-0

[Event "TUR-chT Superleague 2018"]
[Site "Ankara"]
[Date "2018.08.01"]
[Round "8"]
[White "Eren, Ataberk"]
[Black "Kilic, Efe Mert"]
[Result "0-1"]
[ECO "B08"]
[WhiteElo "2193"]
[BlackElo "2317"]
[Annotator "NA"]
[PlyCount "78"]
[EventDate "2018.07.25"]
[EventType "team-tourn"]
[EventCountry "TUR"]
[SourceTitle "playchess.com"]
[Source "ChessBase"]
[SourceQuality "1"]
[TimeControl "40/5400+30:1800+30"]

1. e4 d6 2. d4 Nf6 3. Nc3 g6 4. Be3 Bg7 5. h3 c6 6. Nf3 O-O 7. Bd3 Nbd7 8. Qd2 e5 9. O-O Qc7 10. a4 Re8 11. Rfe1 exd4 12. Bxd4 Ne5 13. Be2 b6 14. b4 Bb7 15. a5 Rad8 16. b5 c5 17. Bxe5 dxe5 18. Qe3 Rd4 19. axb6 axb6 20. Nd2 Red8 21. Rad1 Ne8 22. Bc4 Nd6 23. Bd5 Qd7 24. f3 Nxb5 25. Nxb5 Bxd5 26. Nxd4 exd4 27. Qd3 Be6 28. Rb1 Qc7 29. Qb5 Rb8 30. Nc4 Qg3 31. Nxb6 Bxh3 {[%emt 1:41:08]} 32. Qf1 {[%emt 1:44:56]} d3 {[%emt 0:00:30]} 33. e5 {[%emt 0:00:30]} dxc2 {[%emt 0:00:30]} 34. Rbc1 {[%emt 0:00:30]} Rxb6 {[%emt 0:00:44]} 35. Kh1 {[%emt 0:01:05]} Bf5 {[%emt 0:00:30]} 36. Qe2 {[%emt 0:00:30]} Rb1 {[%emt 0:00:30]} 37. Qe3 {[%emt 0:00:30]} Qh4+ {[%emt 0:00:30]} 38. Kg1 {[%emt 0:00:01]} Qd4 {[%emt 0:00:35]} 39. Kf2 {[%emt 0:00:45]} Bh6 {[%emt 0:00:09]} 0-1

[Event "TUR-chT Superleague 2018"]
[Site "Ankara"]
[Date "2018.08.01"]
[Round "8"]
[White "Gunduz, Umut Erdem"]
[Black "Cansun, Can Alp"]
[Result "0-1"]
[ECO "B48"]
[WhiteElo "2174"]
[BlackElo "1990"]
[Annotator "NA"]
[PlyCount "72"]
[EventDate "2018.07.25"]
[EventType "team-tourn"]
[EventCountry "TUR"]
[SourceTitle "playchess.com"]
[Source "ChessBase"]
[SourceQuality "1"]
[TimeControl "40/5400+30:1800+30"]

1. e4 c5 2. Nf3 e6 3. d4 cxd4 4. Nxd4 Nc6 5. Nc3 Qc7 6. Be3 a6 7. a3 Nf6 8. Nb3 b5 9. f4 d6 10. g4 h6 11. Bg2 Bb7 12. Qe2 Be7 13. h4 h5 14. g5 Ng4 15. Rh3 Nxe3 16. Rxe3 Na5 17. Nxa5 Qxa5 18. O-O-O b4 19. axb4 Qxb4 20. Nd5 exd5 21. exd5 O-O 22. Rxe7 Bc8 23. Qe4 Qa5 24. Kb1 Rb8 25. g6 fxg6 26. Qxg6 Qc3 27. Kc1 Qxb2+ 28. Kd2 Bf5 {[%emt 1:43:12]} 29. Qg5 {[%emt 1:43:52]} Qxc2+ {[%emt 0:00:30]} 30. Ke1 {[%emt 0:00:30]} Qc3+ {[%emt 0:00:30]} 31. Kf2 {[%emt 0:00:23]} Bg4 {[%emt 0:00:56]} 32. Rde1 {[%emt 0:00:30]} Qd4+ {[%emt 0:00:30]} 33. Kg3 {[%emt 0:00:30]} Rf5 {[%emt 0:00:30]} 34. Re8+ {[%emt 0:00:30]} Rxe8 {[%emt 0:00:30]} 35. Rxe8+ {[%emt 0:00:10]} Kh7 {[%emt 0:00:12]} 36. Be4 {[%emt 0:01:19]} Qg1+ {[%emt 0:00:01]} 0-1

[Event "TUR-chT Superleague 2018"]
[Site "Ankara"]
[Date "2018.08.01"]
[Round "8"]
[White "Tofan, Ibrahim"]
[Black "Ozoglu, Berker"]
[Result "1/2-1/2"]
[ECO "A39"]
[WhiteElo "2169"]
[BlackElo "1843"]
[Annotator "NA"]
[PlyCount "122"]
[EventDate "2018.07.25"]
[EventType "team-tourn"]
[EventCountry "TUR"]
[SourceTitle "playchess.com"]
[Source "ChessBase"]
[SourceQuality "1"]
[TimeControl "40/5400+30:1800+30"]

1. Nf3 c5 2. c4 g6 3. g3 Bg7 4. Bg2 Nc6 5. O-O Nf6 6. Nc3 O-O 7. d4 d5 8. dxc5 dxc4 9. Qa4 Qa5 10. Qxc4 Be6 11. Qh4 Qxc5 12. Ng5 Qc4 13. e4 h5 14. Nxe6 Qxe6 15. h3 Ne5 16. Nd5 Nxd5 17. exd5 Qb6 18. Qxe7 Rfe8 19. Qa3 Nc4 20. Qd3 Nxb2 21. Bxb2 Qxb2 22. Rab1 Qd4 23. Qxd4 Bxd4 24. Rxb7 Rab8 25. Rxb8 Rxb8 26. Rd1 Bb6 27. d6 Kf8 28. Bc6 Rd8 29. Rd5 Rc8 30. Ba4 Rc4 31. Bb3 Rd4 32. Rxd4 Bxd4 33. Kg2 f6 34. f4 Ke8 35. Kf3 Kd7 36. Bf7 g5 37. Bxh5 Kxd6 38. Bg6 Ke7 39. Kg4 Be3 40. Kf3 gxf4 41. g4 Kf8 42. h4 Kg7 43. Be4 Bc1 44. Bc6 Be3 45. a4 a5 46. Ke2 Kg6 47. Kf3 Kg7 {[%emt 1:22:30]} 48. Bb5 {[%emt 2:03:00]} Kg6 {[%emt 0:00:30]} 49. Bd3+ {[%emt 0:00:30]} Kg7 {[%emt 0:00:30]} 50. Be4 {[%emt 0:00:30]} Bd2 {[%emt 0:00:30]} 51. Ke2 {[%emt 0:00:30]} Be3 {[%emt 0:00:00]} 52. Bc6 {[%emt 0:00:30]} Kh6 {[%emt 0:00:00]} 53. Kf3 {[%emt 0:03:38]} Kg7 {[%emt 0:00:30]} 54. Ke4 {[%emt 0:00:29]} Bf2 {[%emt 0:01:30]} 55. h5 {[%emt 0:00:02]} Bh4 {[%emt 0:00:30]} 56. Kf5 {[%emt 0:00:46]} f3 {[%emt 0:00:30]} 57. Bxf3 {[%emt 0:01:15]} Bg5 {[%emt 0:00:00]} 58. Ke6 {[%emt 0:02:30]} Bh6 {[%emt 0:00:00]} 59. Be4 {[%emt 0:03:22]} Bg5 {[%emt 0:00:00]} 60. Bf5 {[%emt 0:06:56]} Bh6 {[%emt 0:00:00]} 61. Kd7 {[%emt 0:02:10]} Bg5 {[%emt 0:00:30]} 1/2-1/2

[Event "TUR-chT Superleague 2018"]
[Site "Ankara"]
[Date "2018.08.01"]
[Round "8"]
[White "Oksuz, Akin"]
[Black "Benidze, Davit"]
[Result "0-1"]
[ECO "A43"]
[WhiteElo "2167"]
[BlackElo "2488"]
[Annotator "ChessBase"]
[PlyCount "108"]
[EventDate "2018.07.25"]
[EventType "team-tourn"]
[EventCountry "TUR"]
[SourceTitle "playchess.com"]
[Source "ChessBase"]
[SourceQuality "1"]
[TimeControl "40/5400+30:1800+30"]

1. d4 g6 2. e4 Bg7 3. c4 d6 4. Nc3 c5 5. d5 e6 6. Bd3 Ne7 7. Nf3 O-O 8. O-O e5 9. Ne1 Nd7 10. Bg5 h6 11. Bh4 g5 12. Bg3 f5 13. exf5 Nxf5 14. Nc2 Nf6 15. Ne4 Nxe4 16. Bxe4 Qe8 17. a3 Bd7 18. Qd3 b5 19. b3 Rb8 20. Rab1 Qe7 21. f3 a5 22. Rfe1 Nxg3 23. hxg3 h5 24. Bh7+ Kh8 25. Bg6 g4 26. Kf2 Qg5 27. Ne3 Bh6 28. Rh1 bxc4 29. Nxc4 Rf6 30. Be4 Rbf8 31. Qe3 Qg7 32. Rxh5 Kg8 33. Qd3 gxf3 34. gxf3 Bg4 35. Rh4 Bxf3 36. Bxf3 Bg5 37. Rg4 Rxf3+ 38. Qxf3 Rxf3+ 39. Kxf3 Qf7+ 40. Ke2 {[%emt 1:15:00]} Qf5 {[%emt 1:13:00]} 41. Rxg5+ {[%emt 0:32:30]} Qxg5 {[%emt 0:30:30]} 42. Rf1 {[%emt 0:00:30]} Qg4+ {[%emt 0:00:30]} 43. Kf2 {[%emt 0:03:30]} Qd4+ {[%emt 0:00:00]} 44. Ne3 {[%emt 0:00:30]} e4 {[%emt 0:00:00]} 45. Re1 {[%emt 0:04:30]} Qb2+ {[%emt 0:00:30]} 46. Kg1 {[%emt 0:00:30]} Qxb3 {[%emt 0:00:00]} 47. Nf5 {[%emt 0:00:00]} Qf3 {[%emt 0:00:00]} 48. Rf1 {[%emt 0:00:00]} Qxa3 {[%emt 0:01:30]} 49. Kg2 {[%emt 0:00:30]} Qb2+ {[%emt 0:00:30]} 50. Kh3 {[%emt 0:01:30]} Qe5 {[%emt 0:00:30]} 51. Kg4 {[%emt 0:00:00]} e3 {[%emt 0:00:00]} 52. Re1 {[%emt 0:01:00]} e2 {[%emt 0:00:00]} 53. Kg5 {[%emt 0:00:30]} a4 {[%emt 0:01:30]} 54. Kg6 {[%emt 0:01:30]} a3 {[%emt 0:00:00]} 0-1

[Event "TUR-chT Superleague 2018"]
[Site "Ankara"]
[Date "2018.08.01"]
[Round "8"]
[White "Ozbay, Ece"]
[Black "Yorgun, Yaren Naz"]
[Result "1-0"]
[ECO "C96"]
[WhiteElo "2140"]
[BlackElo "1725"]
[Annotator "NA"]
[PlyCount "57"]
[EventDate "2018.07.25"]
[EventType "team-tourn"]
[EventCountry "TUR"]
[SourceTitle "playchess.com"]
[Source "ChessBase"]
[SourceQuality "1"]
[TimeControl "40/5400+30:1800+30"]

1. e4 e5 2. Nf3 Nc6 3. Bb5 a6 4. Ba4 Nf6 5. O-O Be7 6. Re1 b5 7. Bb3 d6 8. c3 O-O 9. h3 Na5 10. Bc2 d5 11. Nxe5 dxe4 12. b4 Bd6 13. f4 Nb7 14. d4 exd3 15. Bxd3 c5 16. Qf3 cxb4 17. Bd2 bxc3 18. Nxc3 Qb6+ 19. Kh2 Be6 20. Ne4 Nxe4 21. Bxe4 Rab8 22. Be3 Bc5 {[%emt 1:22:35]} 23. f5 {[%emt 1:36:28]} Bc8 {[%emt 0:06:22]} 24. Nc6 {[%emt 0:00:30]} Ra8 {[%emt 0:01:02]} 25. f6 {[%emt 0:01:24]} Bd6+ {[%emt 0:02:53]} 26. Kh1 {[%emt 0:01:05]} Qc7 {[%emt 0:00:06]} 27. Bxh7+ {[%emt 0:01:21]} Kxh7 {[%emt 0:00:45]} 28. Qh5+ {[%emt 0:00:30]} Kg8 {[%emt 0:00:30]} 29. Qg5 {[%emt 0:00:00]} 1-0